[Event "2nd Bieszczady Chess-ch B 2022"]
[Site "Bystre"]
[Date "2022.07.21"]
[Round "5.3"]
[White "Kulig, Pawel"]
[Black "Gluch, Pawel"]
[Result "1/2-1/2"]
[ECO "E12"]
[WhiteElo "1720"]
[BlackElo "1663"]
[Annotator "NA RC COMBH"]
[PlyCount "34"]
[EventDate "2022.07.17"]
[EventCountry "POL"]
[SourceTitle "playchess.com"]
[Source "ChessBase"]
[SourceQuality "1"]
[TimeControl "5400+30"]

1. d4 {[%emt 0:00:03]} Nf6 {[%emt 0:00:33]} 2. c4 {[%emt 0:00:06]} e6 {[%emt 0:00:47]} 3. Nf3 {[%emt 0:00:08]} b6 {[%emt 0:00:05]} 4. Bg5 {[%emt 0:01:00]} Be7 {[%emt 0:00:33]} 5. e3 {[%emt 0:00:10]} Bb7 {[%emt 0:00:10]} 6. Bd3 {[%emt 0:00:20]} c5 {[%emt 0:06:08]} 7. O-O {[%emt 0:00:31]} O-O {[%emt 0:01:25]} 8. Nbd2 {[%emt 0:02:02]} d6 {[%emt 0:00:12]} 9. Qc2 {[%emt 0:03:42]} Nbd7 {[%emt 0:02:25]} 10. Rad1 {[%emt 0:02:32]} h6 {[%emt 0:02:36]} 11. Bxf6 {[%emt 0:01:48]} Nxf6 {[%emt 0:00:17]} 12. dxc5 {[%emt 0:00:29]} bxc5 {[%emt 0:00:24]} 13. Ne4 {[%emt 0:01:35]} Qb6 {[%emt 0:07:44]} 14. b3 {[%emt 0:07:34]} Nxe4 {[%emt 0:09:27]} 15. Bxe4 {[%emt 0:00:09]} Bxe4 {[%emt 0:00:08]} 16. Qxe4 {[%emt 0:00:09]} a5 {[%emt 0:00:03]} 17. Qc2 {[%emt 0:10:56]} Rfb8 {[%emt 0:01:05]} 1/2-1/2

[Event "2nd Bieszczady Chess-ch B 2022"]
[Site "Bystre"]
[Date "2022.07.21"]
[Round "5.4"]
[White "Labedz, Dawid"]
[Black "Polak, Sylwia"]
[Result "1-0"]
[ECO "B42"]
[WhiteElo "1562"]
[BlackElo "1574"]
[Annotator "NA RC COMBH"]
[PlyCount "51"]
[EventDate "2022.07.17"]
[EventCountry "POL"]
[SourceTitle "playchess.com"]
[Source "ChessBase"]
[SourceQuality "1"]
[TimeControl "5400+30"]

1. e4 {[%emt 0:24:16]} c5 {[%emt 0:00:04]} 2. Nf3 {[%emt 0:00:17]} e6 {[%emt 0:00:05]} 3. d4 {[%emt 0:00:04]} cxd4 {[%emt 0:00:03]} 4. Nxd4 {[%emt 0:00:06]} a6 {[%emt 0:00:04]} 5. Bd3 {[%emt 0:00:09]} Qc7 {[%emt 0:00:10]} 6. Be3 {[%emt 0:01:42]} Nf6 {[%emt 0:00:06]} 7. Nd2 {[%emt 0:01:36]} d5 {[%emt 0:01:44]} 8. c3 {[%emt 0:03:34]} Nbd7 {[%emt 0:00:22]} 9. exd5 {[%emt 0:11:46]} Nxd5 {[%emt 0:00:40]} 10. Qe2 {[%emt 0:00:18]} Ne5 {[%emt 0:02:06]} 11. Bc2 {[%emt 0:02:37]} Bd6 {[%emt 0:04:11]} 12. h3 {[%emt 0:02:26]} b5 {[%emt 0:03:23]} 13. Rc1 {[%emt 0:03:37]} Bb7 {[%emt 0:03:13]} 14. O-O {[%emt 0:01:03]} Nxe3 {[%emt 0:01:57]} 15. Qxe3 {[%emt 0:01:04]} Nc4 {[%emt 0:01:26]} 16. Nxc4 {[%emt 0:07:40]} bxc4 {[%emt 0:01:47]} 17. Ba4+ {[%emt 0:02:45]} Kf8 {[%emt 0:02:21]} 18. Rcd1 {[%emt 0:02:21]} g6 {[%emt 0:08:16]} 19. Qxe6 {[%emt 0:10:24]} Qe7 {[%emt 0:07:01]} 20. Qxe7+ {[%emt 0:00:33]} Bxe7 {[%emt 0:00:14]} 21. Rfe1 {[%emt 0:00:49]} Bf6 {[%emt 0:00:33]} 22. Nc6 {[%emt 0:00:53]} Rc8 {[%emt 0:04:24]} 23. Na5 {[%emt 0:00:49]} Ba8 {[%emt 0:00:16]} 24. Rd6 {[%emt 0:01:03]} Kg7 {[%emt 0:00:07]} 25. Rxa6 {[%emt 0:04:06]} Rhd8 {[%emt 0:01:06]} 26. Re2 {[%emt 0:01:19]} 1-0

[Event "2nd Bieszczady Chess-ch B 2022"]
[Site "Bystre"]
[Date "2022.07.21"]
[Round "5.5"]
[White "Tymrakiewicz, Marianna"]
[Black "Kotyla, Jan"]
[Result "0-1"]
[ECO "B02"]
[WhiteElo "1819"]
[BlackElo "1398"]
[Annotator "NA RC COMBH"]
[PlyCount "182"]
[EventDate "2022.07.17"]
[EventCountry "POL"]
[SourceTitle "playchess.com"]
[Source "ChessBase"]
[SourceQuality "1"]
[TimeControl "5400+30"]

1. e4 {[%emt 0:00:02]} Nf6 {[%emt 0:00:07]} 2. Nc3 {[%emt 0:00:37]} d5 {[%emt 0:00:07]} 3. e5 {[%emt 0:01:21]} Nfd7 {[%emt 0:00:07]} 4. d4 {[%emt 0:00:18]} c5 {[%emt 0:00:07]} 5. Nf3 {[%emt 0:06:39]} e6 {[%emt 0:02:54]} 6. Be3 {[%emt 0:06:25]} Nc6 {[%emt 0:00:30]} 7. Be2 {[%emt 0:12:32]} Qb6 {[%emt 0:09:00]} 8. Na4 {[%emt 0:01:37]} Qa5+ {[%emt 0:01:11]} 9. c3 {[%emt 0:00:16]} cxd4 {[%emt 0:00:20]} 10. b4 {[%emt 0:02:49]} Qc7 {[%emt 0:03:14]} 11. Bxd4 {[%emt 0:02:13]} Ncxe5 {[%emt 0:05:02]} 12. Nxe5 {[%emt 0:00:29]} Nxe5 {[%emt 0:00:09]} 13. O-O {[%emt 0:01:18]} f6 {[%emt 0:03:56]} 14. Re1 {[%emt 0:02:27]} Bd6 {[%emt 0:01:20]} 15. Bb5+ {[%emt 0:06:14]} Kf7 {[%emt 0:02:37]} 16. h3 {[%emt 0:02:16]} Rd8 {[%emt 0:11:58]} 17. Nc5 {[%emt 0:04:50]} a6 {[%emt 0:01:49]} 18. Ba4 {[%emt 0:04:02]} b6 {[%emt 0:00:57]} 19. Nd3 {[%emt 0:00:48]} Ng6 {[%emt 0:02:53]} 20. Bb3 {[%emt 0:01:01]} Kg8 {[%emt 0:01:58]} 21. Qf3 {[%emt 0:03:51]} Kh8 {[%emt 0:01:32]} 22. Qe3 {[%emt 0:02:24]} Rb8 {[%emt 0:00:44]} 23. Qd2 {[%emt 0:02:49]} e5 {[%emt 0:01:49]} 24. Be3 {[%emt 0:00:05]} Bb7 {[%emt 0:01:16]} 25. Rec1 {[%emt 0:07:04]} Qc6 {[%emt 0:00:39]} 26. Ne1 {[%emt 0:00:23]} b5 {[%emt 0:00:56]} 27. a4 {[%emt 0:00:39]} Bc7 {[%emt 0:01:02]} 28. Qe2 {[%emt 0:03:26]} Ba8 {[%emt 0:01:50]} 29. a5 {[%emt 0:04:01]} Qe6 {[%emt 0:01:59]} 30. Nd3 {[%emt 0:01:29]} e4 {[%emt 0:01:40]} 31. Nc5 {[%emt 0:01:04]} Qe5 {[%emt 0:00:18]} 32. Qg4 {[%emt 0:02:31]} f5 {[%emt 0:01:44]} 33. Qg5 {[%emt 0:00:55]} Bd6 {[%emt 0:01:04]} 34. Bd4 {[%emt 0:00:45]} Qh2+ {[%emt 0:01:16]} 35. Kf1 {[%emt 0:00:01]} Be7 {[%emt 0:01:02]} 36. Qh6 {[%emt 0:02:48]} Ne5 {[%emt 0:02:54]} 37. Bxe5 {[%emt 0:02:59]} Qxe5 {[%emt 0:00:07]} 38. Qe6 {[%emt 0:03:45]} Qxe6 {[%emt 0:03:17]} 39. Nxe6 {[%emt 0:00:01]} Rd6 {[%emt 0:03:55]} 40. Nd4 {[%emt 0:00:12]} g6 {[%emt 0:00:36]} 41. g3 {[%emt 0:00:35]} Bg5 {[%emt 0:02:07]} 42. Rc2 {[%emt 0:00:02]} Rc8 {[%emt 0:00:37]} 43. h4 {[%emt 0:00:27]} Bf6 {[%emt 0:00:27]} 44. Rd1 {[%emt 0:00:24]} Kg7 {[%emt 0:03:34]} 45. Ke2 {[%emt 0:00:02]} Bb7 {[%emt 0:02:16]} 46. Ke3 {[%emt 0:00:50]} Be7 {[%emt 0:01:43]} 47. Ke2 {[%emt 0:00:22]} Kf6 {[%emt 0:00:18]} 48. Rh1 {[%emt 0:00:15]} Rd7 {[%emt 0:00:56]} 49. Kd2 {[%emt 0:01:55]} Ke5 {[%emt 0:01:37]} 50. Ke2 {[%emt 0:00:22]} Rdc7 {[%emt 0:02:35]} 51. Kd2 {[%emt 0:02:41]} Bf8 {[%emt 0:00:30]} 52. Ne2 {[%emt 0:00:08]} Bh6+ {[%emt 0:00:51]} 53. Kd1 {[%emt 0:00:13]} Bc6 {[%emt 0:02:36]} 54. Re1 {[%emt 0:01:29]} Bd7 {[%emt 0:00:53]} 55. f4+ {[%emt 0:01:35]} Kd6 {[%emt 0:05:31]} 56. Kd2 {[%emt 0:00:22]} Bg7 {[%emt 0:00:21]} 57. Rec1 {[%emt 0:00:23]} Be6 {[%emt 0:00:57]} 58. Rb2 {[%emt 0:02:05]} d4 {[%emt 0:00:47]} 59. cxd4 {[%emt 0:01:20]} Rxc1 {[%emt 0:01:48]} 60. Nxc1 {[%emt 0:00:01]} Bxd4 {[%emt 0:00:18]} 61. Bxe6 {[%emt 0:00:24]} Kxe6 {[%emt 0:00:56]} 62. Rb3 {[%emt 0:00:10]} Kd5 {[%emt 0:00:56]} 63. Ne2 {[%emt 0:00:46]} Bf6 {[%emt 0:00:37]} 64. Rb1 {[%emt 0:00:57]} Rc4 {[%emt 0:00:37]} 65. Ke3 {[%emt 0:00:57]} Be7 {[%emt 0:01:05]} 66. Rd1+ {[%emt 0:00:29]} Kc6 {[%emt 0:01:18]} 67. Nd4+ {[%emt 0:00:08]} Kb7 {[%emt 0:00:44]} 68. Ne6 {[%emt 0:00:11]} Bxb4 {[%emt 0:00:41]} 69. Rd7+ {[%emt 0:00:33]} Kc6 {[%emt 0:00:28]} 70. Rxh7 {[%emt 0:00:16]} Kd6 {[%emt 0:01:47]} 71. Nf8 {[%emt 0:00:21]} Rc3+ {[%emt 0:01:22]} 72. Ke2 {[%emt 0:00:16]} Rxg3 {[%emt 0:00:18]} 73. Rh6 {[%emt 0:00:34]} Kd5 {[%emt 0:02:05]} 74. Nxg6 {[%emt 0:00:15]} Kd4 {[%emt 0:02:08]} 75. Ne5 {[%emt 0:00:13]} Rg2+ {[%emt 0:01:12]} 76. Kf1 {[%emt 0:00:01]} Ra2 {[%emt 0:00:22]} 77. Nc6+ {[%emt 0:00:02]} Kc4 {[%emt 0:01:02]} 78. Nxb4 {[%emt 0:00:03]} Kxb4 {[%emt 0:00:11]} 79. Rxa6 {[%emt 0:00:04]} Ka3 {[%emt 0:00:34]} 80. Rc6 {[%emt 0:00:39]} b4 {[%emt 0:00:24]} 81. a6 {[%emt 0:03:03]} b3 {[%emt 0:00:11]} 82. a7 {[%emt 0:00:38]} Kb4 {[%emt 0:00:40]} 83. Rb6+ {[%emt 0:00:18]} Kc3 {[%emt 0:00:09]} 84. Rc6+ {[%emt 0:00:31]} Kd3 {[%emt 0:00:46]} 85. Rb6 {[%emt 0:00:05]} Kc2 {[%emt 0:00:28]} 86. Rc6+ {[%emt 0:00:20]} Kb2 {[%emt 0:00:19]} 87. Rc7 {[%emt 0:00:14]} Ra5 {[%emt 0:00:35]} 88. h5 {[%emt 0:00:23]} Ka2 {[%emt 0:00:32]} 89. h6 {[%emt 0:00:44]} b2 {[%emt 0:00:36]} 90. Rc2 {[%emt 0:00:05]} Rxa7 {[%emt 0:00:11]} 91. Rh2 {[%emt 0:00:56]} Rh7 {[%emt 0:00:11]} 0-1

[Event "2nd Bieszczady Chess-ch B 2022"]
[Site "Bystre"]
[Date "2022.07.21"]
[Round "5.6"]
[White "Tokarz, Gabriela"]
[Black "Kasianczuk, Krzysztof"]
[Result "1-0"]
[ECO "E81"]
[WhiteElo "1412"]
[BlackElo "1557"]
[Annotator "NA RC COMBH"]
[PlyCount "37"]
[EventDate "2022.07.17"]
[EventCountry "POL"]
[SourceTitle "playchess.com"]
[Source "ChessBase"]
[SourceQuality "1"]
[TimeControl "5400+30"]

1. d4 {[%emt 0:00:01]} Nf6 {[%emt 0:00:06]} 2. c4 {[%emt 0:00:19]} g6 {[%emt 0:00:06]} 3. Nc3 {[%emt 0:00:06]} Bg7 {[%emt 0:00:07]} 4. e4 {[%emt 0:00:07]} d6 {[%emt 0:00:06]} 5. f3 {[%emt 0:00:06]} O-O {[%emt 0:00:19]} 6. Be3 {[%emt 0:00:09]} Nbd7 {[%emt 0:01:23]} 7. Qd2 {[%emt 0:00:18]} Re8 {[%emt 0:03:50]} 8. O-O-O {[%emt 0:00:23]} e5 {[%emt 0:06:01]} 9. d5 {[%emt 0:00:38]} Nc5 {[%emt 0:10:07]} 10. g4 {[%emt 0:02:05]} h5 {[%emt 0:04:52]} 11. gxh5 {[%emt 0:02:15]} Nxh5 {[%emt 0:00:31]} 12. Nge2 {[%emt 0:00:34]} Bd7 {[%emt 0:07:23]} 13. Ng3 {[%emt 0:00:45]} Nf6 {[%emt 0:05:33]} 14. h4 {[%emt 0:00:53]} Kf8 {[%emt 0:13:30]} 15. h5 {[%emt 0:02:46]} Nxh5 {[%emt 0:02:43]} 16. Nxh5 {[%emt 0:00:23]} gxh5 {[%emt 0:00:03]} 17. Rxh5 {[%emt 0:00:28]} Ke7 {[%emt 0:18:06]} 18. Bxc5 {[%emt 0:00:26]} dxc5 {[%emt 0:00:58]} 19. d6+ {[%emt 0:00:24]} 1-0

[Event "2nd Bieszczady Chess-ch B 2022"]
[Site "Bystre"]
[Date "2022.07.21"]
[Round "5.7"]
[White "Kucza, Arkadiusz"]
[Black "Labedz, Gabriela"]
[Result "1-0"]
[ECO "A04"]
[WhiteElo "1500"]
[BlackElo "1346"]
[Annotator "NA RC COMBH"]
[PlyCount "73"]
[EventDate "2022.07.17"]
[EventCountry "POL"]
[SourceTitle "playchess.com"]
[Source "ChessBase"]
[SourceQuality "1"]
[TimeControl "5400+30"]

1. Nf3 {[%emt 0:00:02]} c5 {[%emt 0:24:53]} 2. g3 {[%emt 0:00:05]} Nc6 {[%emt 0:00:26]} 3. Bg2 {[%emt 0:00:06]} d5 {[%emt 0:00:12]} 4. d3 {[%emt 0:00:04]} Nf6 {[%emt 0:00:55]} 5. O-O {[%emt 0:00:25]} e5 {[%emt 0:00:14]} 6. Nbd2 {[%emt 0:00:07]} Be7 {[%emt 0:01:31]} 7. e4 {[%emt 0:00:26]} O-O {[%emt 0:00:35]} 8. c3 {[%emt 0:01:55]} d4 {[%emt 0:03:14]} 9. c4 {[%emt 0:04:00]} a6 {[%emt 0:01:30]} 10. a3 {[%emt 0:00:29]} b5 {[%emt 0:00:52]} 11. Ne1 {[%emt 0:01:57]} Ne8 {[%emt 0:03:08]} 12. f4 {[%emt 0:00:47]} f6 {[%emt 0:01:19]} 13. f5 {[%emt 0:00:17]} Nd6 {[%emt 0:01:23]} 14. b3 {[%emt 0:00:57]} Bb7 {[%emt 0:02:21]} 15. g4 {[%emt 0:00:58]} Qe8 {[%emt 0:05:03]} 16. h4 {[%emt 0:01:56]} Nf7 {[%emt 0:02:26]} 17. Rf3 {[%emt 0:02:54]} h6 {[%emt 0:04:55]} 18. Rg3 {[%emt 0:01:22]} Rb8 {[%emt 0:01:29]} 19. Ndf3 {[%emt 0:03:08]} Qd8 {[%emt 0:04:08]} 20. Bd2 {[%emt 0:02:06]} Na5 {[%emt 0:03:18]} 21. Rb1 {[%emt 0:00:58]} Bc6 {[%emt 0:03:22]} 22. b4 {[%emt 0:04:08]} cxb4 {[%emt 0:03:40]} 23. axb4 {[%emt 0:01:00]} Nb7 {[%emt 0:01:02]} 24. c5 {[%emt 0:03:53]} a5 {[%emt 0:01:02]} 25. Nc2 {[%emt 0:01:36]} Be8 {[%emt 0:05:37]} 26. Qc1 {[%emt 0:04:39]} axb4 {[%emt 0:01:46]} 27. Nxb4 {[%emt 0:00:18]} Nxc5 {[%emt 0:01:09]} 28. g5 {[%emt 0:07:59]} fxg5 {[%emt 0:03:18]} 29. hxg5 {[%emt 0:00:15]} Bxg5 {[%emt 0:00:43]} 30. Bxg5 {[%emt 0:01:11]} hxg5 {[%emt 0:00:05]} 31. Qxc5 {[%emt 0:00:48]} Rc8 {[%emt 0:04:58]} 32. Qd5 {[%emt 0:01:06]} Qb6 {[%emt 0:02:22]} 33. Nxg5 {[%emt 0:03:29]} Rc5 {[%emt 0:01:49]} 34. Qe6 {[%emt 0:02:50]} Qa7 {[%emt 0:01:36]} 35. Nd5 {[%emt 0:03:10]} Kh8 {[%emt 0:01:03]} 36. Nxf7+ {[%emt 0:00:39]} Bxf7 {[%emt 0:00:47]} 37. Rh3+ {[%emt 0:00:09]} 1-0

[Event "2nd Bieszczady Chess-ch B 2022"]
[Site "Bystre"]
[Date "2022.07.21"]
[Round "5.8"]
[White "Stefanski, Adam"]
[Black "Sypek, Szymon"]
[Result "1-0"]
[ECO "A05"]
[WhiteElo "1404"]
[BlackElo "1726"]
[Annotator "NA RC COMBH"]
[PlyCount "65"]
[EventDate "2022.07.17"]
[EventCountry "POL"]
[SourceTitle "playchess.com"]
[Source "ChessBase"]
[SourceQuality "1"]
[TimeControl "5400+30"]

1. Nf3 {[%emt 0:18:23]} Nf6 {[%emt 0:00:12]} 2. c4 {[%emt 0:00:02]} g6 {[%emt 0:00:09]} 3. Nc3 {[%emt 0:00:04]} Bg7 {[%emt 0:00:04]} 4. g3 {[%emt 0:00:03]} O-O {[%emt 0:00:31]} 5. Bg2 {[%emt 0:00:02]} c6 {[%emt 0:01:35]} 6. O-O {[%emt 0:01:04]} d5 {[%emt 0:00:58]} 7. cxd5 {[%emt 0:00:11]} cxd5 {[%emt 0:00:06]} 8. d3 {[%emt 0:00:11]} Nc6 {[%emt 0:01:52]} 9. Bd2 {[%emt 0:02:18]} Bf5 {[%emt 0:04:23]} 10. Nh4 {[%emt 0:03:21]} Be6 {[%emt 0:01:21]} 11. Qc1 {[%emt 0:04:40]} Re8 {[%emt 0:00:54]} 12. Bh6 {[%emt 0:02:05]} Bh8 {[%emt 0:00:42]} 13. f4 {[%emt 0:03:21]} Qb6+ {[%emt 0:02:35]} 14. Kh1 {[%emt 0:06:44]} Ng4 {[%emt 0:17:14]} 15. f5 {[%emt 0:03:21]} Nf2+ {[%emt 0:03:18]} 16. Rxf2 {[%emt 0:03:15]} Qxf2 {[%emt 0:00:20]} 17. Be3 {[%emt 0:00:25]} Qxe3 {[%emt 0:00:57]} 18. Qxe3 {[%emt 0:01:24]} d4 {[%emt 0:00:04]} 19. Qf2 {[%emt 0:04:03]} dxc3 {[%emt 0:01:46]} 20. fxe6 {[%emt 0:06:53]} fxe6 {[%emt 0:00:16]} 21. bxc3 {[%emt 0:01:12]} Bxc3 {[%emt 0:00:06]} 22. Rc1 {[%emt 0:00:21]} Rf8 {[%emt 0:01:04]} 23. Qe3 {[%emt 0:00:55]} Bd4 {[%emt 0:00:26]} 24. Qxe6+ {[%emt 0:01:24]} Kg7 {[%emt 0:00:25]} 25. Bxc6 {[%emt 0:04:04]} bxc6 {[%emt 0:00:03]} 26. Rxc6 {[%emt 0:04:06]} Rf1+ {[%emt 0:03:07]} 27. Kg2 {[%emt 0:00:34]} Rf2+ {[%emt 0:00:19]} 28. Kh3 {[%emt 0:00:39]} Raf8 {[%emt 0:01:08]} 29. Nf3 {[%emt 0:11:42]} Bf6 {[%emt 0:00:17]} 30. Rc1 {[%emt 0:02:29]} g5 {[%emt 0:01:24]} 31. Qe3 {[%emt 0:00:47]} g4+ {[%emt 0:00:40]} 32. Kxg4 {[%emt 0:00:08]} h5+ {[%emt 0:00:02]} 33. Kh3 {[%emt 0:00:25]} 1-0

[Event "2nd Bieszczady Chess-ch B 2022"]
[Site "Bystre"]
[Date "2022.07.21"]
[Round "5.9"]
[White "Kusiak, Mateusz"]
[Black "Rzeszuto, Karol"]
[Result "1-0"]
[ECO "C78"]
[WhiteElo "1693"]
[BlackElo "1314"]
[Annotator "NA RC COMBH"]
[PlyCount "55"]
[EventDate "2022.07.17"]
[EventCountry "POL"]
[SourceTitle "playchess.com"]
[Source "ChessBase"]
[SourceQuality "1"]
[TimeControl "5400+30"]

1. e4 {[%emt 0:00:58]} e5 {[%emt 0:00:03]} 2. Nf3 {[%emt 0:00:04]} Nc6 {[%emt 0:00:04]} 3. Bb5 {[%emt 0:00:05]} a6 {[%emt 0:00:03]} 4. Ba4 {[%emt 0:00:41]} Nf6 {[%emt 0:00:04]} 5. O-O {[%emt 0:00:06]} b5 {[%emt 0:00:02]} 6. Bb3 {[%emt 0:00:04]} Bc5 {[%emt 0:00:04]} 7. c3 {[%emt 0:01:16]} d6 {[%emt 0:00:22]} 8. h3 {[%emt 0:00:09]} Bb7 {[%emt 0:00:06]} 9. d4 {[%emt 0:00:11]} Bb6 {[%emt 0:00:03]} 10. Re1 {[%emt 0:11:49]} Qe7 {[%emt 0:03:17]} 11. Qd3 {[%emt 0:01:44]} O-O {[%emt 0:02:14]} 12. Bg5 {[%emt 0:00:27]} Qd7 {[%emt 0:03:03]} 13. a4 {[%emt 0:05:21]} b4 {[%emt 0:01:40]} 14. d5 {[%emt 0:01:37]} Ne7 {[%emt 0:02:08]} 15. cxb4 {[%emt 0:00:10]} Nh5 {[%emt 0:00:37]} 16. a5 {[%emt 0:01:24]} Ba7 {[%emt 0:00:16]} 17. Ba4 {[%emt 0:00:05]} Qd8 {[%emt 0:00:31]} 18. Nc3 f6 {[%emt 0:01:31]} 19. Bd2 {[%emt 0:15:24]} Ng6 {[%emt 0:00:30]} 20. Ne2 {[%emt 0:00:10]} Qc8 {[%emt 0:01:19]} 21. Rac1 {[%emt 0:06:18]} f5 {[%emt 0:00:07]} 22. exf5 {[%emt 0:00:37]} Qxf5 {[%emt 0:00:30]} 23. Qxf5 {[%emt 0:00:35]} Rxf5 {[%emt 0:00:04]} 24. Bd7 {[%emt 0:00:11]} Rff8 {[%emt 0:00:33]} 25. Be6+ {[%emt 0:00:10]} Kh8 {[%emt 0:00:03]} 26. Rxc7 {[%emt 0:01:35]} Bc8 {[%emt 0:00:09]} 27. Bxc8 {[%emt 0:00:38]} Rfxc8 {[%emt 0:00:05]} 28. Rec1 {[%emt 0:00:09]} 1-0

[Event "2nd Bieszczady Chess-ch B 2022"]
[Site "Bystre"]
[Date "2022.07.21"]
[Round "5.10"]
[White "Mazurek, Filip"]
[Black "Giefert, Sara"]
[Result "0-1"]
[ECO "B90"]
[WhiteElo "1310"]
[BlackElo "1692"]
[Annotator "NA RC COMBH"]
[PlyCount "92"]
[EventDate "2022.07.17"]
[EventCountry "POL"]
[SourceTitle "playchess.com"]
[Source "ChessBase"]
[SourceQuality "1"]
[TimeControl "5400+30"]

1. e4 {[%emt 0:00:04]} c5 {[%emt 0:00:05]} 2. Nf3 {[%emt 0:00:05]} d6 {[%emt 0:00:06]} 3. d4 {[%emt 0:00:05]} cxd4 {[%emt 0:00:04]} 4. Nxd4 {[%emt 0:00:05]} Nf6 {[%emt 0:00:06]} 5. Nc3 {[%emt 0:00:05]} a6 {[%emt 0:00:06]} 6. Be3 {[%emt 0:00:06]} e5 {[%emt 0:00:07]} 7. Nb3 {[%emt 0:00:06]} Be6 {[%emt 0:00:22]} 8. f3 {[%emt 0:00:06]} Nbd7 {[%emt 0:00:27]} 9. g4 {[%emt 0:00:07]} h6 {[%emt 0:00:21]} 10. Qd2 {[%emt 0:00:17]} Rc8 {[%emt 0:00:42]} 11. O-O-O {[%emt 0:00:08]} b5 {[%emt 0:01:43]} 12. Kb1 {[%emt 0:00:08]} Qc7 {[%emt 0:01:59]} 13. h4 {[%emt 0:00:13]} b4 {[%emt 0:03:27]} 14. Nd5 {[%emt 0:00:09]} Bxd5 {[%emt 0:00:10]} 15. exd5 {[%emt 0:00:09]} a5 {[%emt 0:01:28]} 16. Bh3 {[%emt 0:03:39]} a4 {[%emt 0:07:20]} 17. Nc1 {[%emt 0:00:33]} a3 {[%emt 0:03:14]} 18. Qe2 {[%emt 0:08:40]} axb2 {[%emt 0:02:49]} 19. Nb3 {[%emt 0:00:43]} Be7 {[%emt 0:16:23]} 20. Rd2 {[%emt 0:05:24]} g5 {[%emt 0:07:24]} 21. Bf1 {[%emt 0:20:46]} gxh4 {[%emt 0:03:04]} 22. Bh3 {[%emt 0:08:11]} Rb8 {[%emt 0:15:28]} 23. Qa6 {[%emt 0:05:35]} Nb6 {[%emt 0:03:01]} 24. Bxb6 {[%emt 0:01:58]} Rxb6 {[%emt 0:01:15]} 25. Qd3 {[%emt 0:00:58]} Rb7 {[%emt 0:04:19]} 26. Re1 {[%emt 0:04:54]} Qc3 {[%emt 0:04:02]} 27. Re3 {[%emt 0:05:39]} Qxd3 {[%emt 0:04:06]} 28. Rexd3 {[%emt 0:00:48]} h5 {[%emt 0:02:32]} 29. Kxb2 {[%emt 0:00:37]} e4 {[%emt 0:01:03]} 30. Re3 {[%emt 0:00:54]} exf3 {[%emt 0:00:37]} 31. gxh5 {[%emt 0:00:15]} Rxh5 {[%emt 0:00:51]} 32. Rxf3 {[%emt 0:01:38]} Nxd5 {[%emt 0:02:02]} 33. Rdf2 {[%emt 0:01:54]} Nc3 {[%emt 0:01:24]} 34. Rf1 {[%emt 0:01:33]} Bf8 {[%emt 0:01:50]} 35. Be6 {[%emt 0:03:37]} Rh7 {[%emt 0:00:34]} 36. Bc4 {[%emt 0:03:44]} h3 {[%emt 0:02:03]} 37. Bd3 {[%emt 0:02:40]} Rh6 {[%emt 0:01:02]} 38. Bf5 {[%emt 0:01:48]} h2 {[%emt 0:00:39]} 39. Rh3 {[%emt 0:00:57]} Rxh3 {[%emt 0:00:48]} 40. Bxh3 {[%emt 0:00:09]} Bg7 {[%emt 0:00:16]} 41. Nd2 {[%emt 0:01:48]} Ne4+ {[%emt 0:00:31]} 42. Kc1 {[%emt 0:00:15]} Bh6 {[%emt 0:00:09]} 43. Bg2 {[%emt 0:00:34]} Nxd2 {[%emt 0:00:35]} 44. Rh1 {[%emt 0:01:00]} Re7 {[%emt 0:00:34]} 45. Rxh2 {[%emt 0:00:27]} Re1+ {[%emt 0:00:05]} 46. Kb2 {[%emt 0:00:14]} Rb1# {[%emt 0:00:06]} 0-1